[Event "Saint Louis Norm Congress-IM 2022"]
[Site "Saint Louis"]
[Date "2022.05.19"]
[Round "1.5"]
[White "Grabinsky, Aaron"]
[Black "Proleiko, Julian"]
[Result "1-0"]
[ECO "B11"]
[WhiteElo "2401"]
[BlackElo "2204"]
[Annotator "TA"]
[PlyCount "105"]
[EventDate "2022.05.20"]
[EventType "tourn"]
[EventCountry "USA"]
[SourceTitle "playchess.com"]
[Source "ChessBase"]
[SourceQuality "1"]
[TimeControl "5400+30"]

{[%evp 9,104,29,53,18,6,-17,-26,-22,25,24,44,39,40,31,31,25,10,0,2,14,0,12,15,18,25,7,6,19,8,6,35,26,38,31,41,41,45,41,91,95,91,85,87,98,118,82,80,90,71,79,108,42,54,0,0,-65,-63,-72,-62,-193,0,0,0,0,0,0,-16,-235,0,0,23,21,122,129,429,413,595,526,500,408,568,475,747,693,916,874,1922,1695,29991,29992,29992,29993,29996,29997,29997,29998,29999]} 1. e4 {[%emt 0:00:10]} c6 {[%emt 0:00:07]} 2. Nc3 {[%emt 0:00:07]} d5 {[%emt 0:00:05]} 3. Nf3 {[%emt 0:00:08]} dxe4 {[%emt 0:00:05]} 4. Nxe4 {[%emt 0:00:08]} Nf6 {[%emt 0:00:04]} 5. Qe2 {[%emt 0:01:36]} Na6 {[%emt 0:00:05]} 6. Nxf6+ {[%emt 0:01:31] B11: Caro-Kann: Two Knights Variation.} (6. d4 $14 {deserves consideration.}) 6... gxf6 $11 {[%emt 0:00:07]} 7. h3 {[%emt 0:02:46]} Bf5 {[%emt 0:09:22]} 8. d3 {[%emt 0:02:24] Black has an edge.} e6 {[%emt 0:00:54] [#]} (8... Nb4 {might be stronger.}) 9. g3 $146 {[%emt 0:02:37]} ({Predecessor:} 9. a3 h6 10. g3 Nc7 11. Bg2 Bg7 12. O-O O-O 13. Nh2 Bg6 14. h4 Nb5 15. Qd1 {1-0 (39) Tu,H (2509)-Tran,Q (2196) Nha Trang 2009}) 9... Qa5+ {[%emt 0:16:09]} 10. Bd2 {[%emt 0:05:16][%cal Bc1d2,Bd2c3,Bc3d4][%mdl 32]} Nb4 {[%emt 0:02:02]} 11. Bc3 {[%emt 0:02:57]} Qc5 {[%emt 0:01:42]} 12. Bg2 {[%emt 0:04:57]} Nd5 {[%emt 0:00:20]} 13. Bd4 {[%emt 0:01:12]} Qa5+ {[%emt 0:00:20]} 14. Kf1 {[%emt 0:10:22]} O-O-O {[%emt 0:07:23]} 15. a3 {[%emt 0:03:52]} c5 {[%emt 0:05:21] Against b4} 16. b4 {[%emt 0:04:06]} Qb6 {[%emt 0:03:28]} 17. bxc5 {[%emt 0:03:11]} Bxc5 {[%emt 0:00:20]} 18. Bxc5 {[%emt 0:00:25]} Qxc5 {[%emt 0:00:02]} 19. Kg1 {[%emt 0:04:50]} Rhg8 {[%emt 0:06:22] White must now prevent ...Rxg3.} 20. Kh2 {[%emt 0:02:32]} Nc3 {[%emt 0:00:45]} 21. Qe1 {[%emt 0:00:54]} e5 {[%emt 0:01:07]} 22. Nd2 {[%emt 0:01:01]} h5 {[%emt 0:03:25][%cal Oh5h4]} 23. Nc4 {[%emt 0:03:58]} Nd5 {[%emt 0:00:29]} ({Black should play} 23... Qd4 $14) 24. h4 $1 $16 {[%emt 0:02:44]} Be6 {[%emt 0:05:49]} 25. Rb1 {[%emt 0:01:42]} b6 {[%emt 0:01:14]} 26. a4 {[%emt 0:03:05][%cal Ba3a4,Ba4a5][%mdl 32]} Nc7 {[%emt 0:00:58] Prevents Rb5.} 27. a5 {[%emt 0:03:43][%cal Ra5b6]} b5 {[%emt 0:00:32]} 28. Nd2 {[%emt 0:01:29][%cal Oc2c4]} f5 {[%emt 0:02:10]} 29. Nb3 {[%emt 0:02:31]} Qd6 {[%emt 0:00:14]} (29... Qxc2 $2 30. Qxe5 $1 Qxf2 31. Rhf1 $18 (31. Rb2 Qxg3+ 32. Qxg3 Rxg3 $16)) 30. Qe3 {[%emt 0:00:23]} (30. c4 $16) 30... f4 $1 $14 {[%emt 0:00:33]} 31. Qxa7 {[%emt 0:02:11]} (31. Qc5 $1 $14) 31... e4 $11 {[%emt 0:00:59][%cal Rf4g3]} 32. Bxe4 {[%emt 0:05:21]} (32. Nc5 $11 fxg3+ 33. Kg1 gxf2+ 34. Kf1) 32... fxg3+ $15 {[%emt 0:00:08]} 33. Kg2 {[%emt 0:00:08] [#] And now f3 would win.} gxf2+ {[%emt 0:00:21]} (33... Bd5 34. f3 Ne6 35. Bxd5 Qxd5 36. Rhe1 Nf4+ 37. Kg1 Nh3+ 38. Kg2 Nf4+ 39. Kg1 Nh3+ 40. Kg2 Nf4+ $11) 34. Kf1 {[%emt 0:00:27] [#]} (34. Kxf2 $15 Rde8 35. Rbg1 (35. Ke2 $2 Bxb3 36. Qb7+ Kd7 $19)) 34... Rg1+ $2 {[%emt 0:00:57]} (34... Bd5 $1 $19 {[%cal Rd5e4] aiming for ...Bxe4.} 35. Qc5 (35. Qxf2 $2 Bxe4 36. dxe4 Rg4 $19) 35... Rg1+ 36. Rxg1 fxg1=Q+ 37. Qxg1 Bxe4 38. dxe4 Qf4+ 39. Qf2 Qxe4) 35. Rxg1 $11 {[%emt 0:03:15] Dancing on a razor blade.} fxg1=Q+ {[%emt 0:00:29]} 36. Qxg1 {[%emt 0:00:11]} Bh3+ {[%emt 0:12:06]} 37. Ke1 {[%emt 0:01:08][%cal Bf1e1,Be1d2,Bd2c1,Bc1b1][%mdl 32]} f5 {[%emt 0:00:50]} 38. Bh1 {[%emt 0:02:55]} (38. Qe3 $2 Bg4 39. Qc5 fxe4 40. Qxd6 Rxd6 $19) (38. Bf3 $1 $11 {and White is okay.}) 38... Qf4 $2 {[%emt 0:04:25]} (38... Re8+ $19 39. Kd1 Qf4) 39. Bc6 $36 {[%emt 0:01:25][%cal Oa5a6][%mdl 2048] White fights for an advantage.} Qxh4+ {[%emt 0:08:17]} (39... Rd6 $5 40. Qg8+ Rd8 $11) 40. Kd2 {[%emt 0:01:08] Strongly threatening Qb6.} Qb4+ {[%emt 0:00:27]} (40... Qf4+ 41. Qe3 Qxe3+ 42. Kxe3 $16) (40... Rd6 $1 $11 41. Bh1 (41. Qb6 $2 Qf4+ 42. Qe3 Qh2+ 43. Kc1 Rxc6 $19) 41... b4) 41. Kc1 $16 {[%emt 0:04:13]} Qa3+ $2 {[%emt 0:02:14][%mdl 8192]} (41... Qc3 $16 42. Qc5 (42. Qb6 Rxd3 43. Qb7+ Kd8 $11) 42... Qxc5 43. Nxc5 Rd6 44. Bb7+ (44. Bxb5 Rd5 $11) 44... Kb8) 42. Rb2 $18 {[%emt 0:00:51]} Nd5 {[%emt 0:05:40] Against Qb6} (42... Qe7 $142 43. a6 Nxa6) 43. Bxd5 {[%emt 0:04:52]} ({Less strong is} 43. Qa7 Qe7 44. Qf2 Qg5+ 45. Nd2 Qe3 46. Qxe3 Nxe3 47. Rxb5 Kc7 $18) 43... Rxd5 {[%emt 0:00:01]} 44. Qh1 {[%emt 0:00:15][%csl LRd5,LRh3]} Qb4 {[%emt 0:01:18]} 45. Nd2 {[%emt 0:02:37]} Qh4 {[%emt 0:00:03]} (45... Qc5 $142 46. Qxh3 Qg1+ 47. Qf1 Qxf1+ 48. Nxf1 f4) 46. Kb1 {[%emt 0:00:23]} Rc5 {[%emt 0:00:42]} 47. a6 {[%emt 0:00:37] Threatens to win with a7.} Rc7 {[%emt 0:01:20]} 48. Rxb5 {[%emt 0:00:56] Intending Qa8+ and mate.} Qa4 {[%emt 0:00:56]} 49. Qa8+ {[%emt 0:00:29] White mates.} Kd7 {[%emt 0:00:02]} 50. Qd5+ {[%emt 0:00:24]} Kc8 {[%emt 0:00:04]} 51. Qe6+ {[%emt 0:00:39]} Rd7 {[%emt 0:00:03]} 52. Qe8+ {[%emt 0:00:09]} Rd8 {[%emt 0:00:13]} 53. Qc6# {[%emt 0:00:07] Weighted Error Value: White=0.21 (precise) /Black=0.44} 1-0

[Event "Saint Louis Norm Congress-IM 2022"]
[Site "Saint Louis"]
[Date "2022.05.20"]
[Round "2.1"]
[White "Posthuma, Joshua"]
[Black "Proleiko, Julian"]
[Result "1-0"]
[ECO "A05"]
[WhiteElo "2405"]
[BlackElo "2204"]
[Annotator "TA"]
[PlyCount "108"]
[EventDate "2022.05.20"]
[EventType "tourn"]
[EventCountry "USA"]
[SourceTitle "playchess.com"]
[Source "ChessBase"]
[SourceQuality "1"]
[TimeControl "5400+30"]

{[%evp 12,108,24,22,29,25,22,26,9,0,0,0,0,0,0,0,22,15,31,29,52,50,57,8,17,28,39,4,71,66,89,94,98,98,85,85,88,89,89,97,102,88,101,68,105,77,116,122,127,88,114,151,149,40,43,8,8,8,8,0,8,8,50,50,52,50,206,206,593,362,362,362,358,239,200,8,8,10,2901,2857,29961,29950,29960,11034,5373,1312,29969,29973,29969,29972,29980,29981,29981,29982,29981,29981,29981,29982,29986]} 1. Nf3 {[%emt 0:00:09]} Nf6 {[%emt 0:00:12]} 2. g3 {[%emt 0:01:25]} b5 {[%emt 0:00:06]} 3. Bg2 {[%emt 0:00:20]} Bb7 {[%emt 0:00:07]} 4. O-O {[%emt 0:01:33]} e6 {[%emt 0:00:08]} 5. d3 {[%emt 0:01:55]} Be7 {[%emt 0:00:57]} 6. e4 {[%emt 0:02:13]} d6 {[%emt 0:00:51]} 7. a4 {[%emt 0:02:46]} a6 {[%emt 0:01:33] A05: Réti Opening: 1 Nf3 Nf6.} 8. axb5 {[%emt 0:02:15]} axb5 {[%emt 0:00:23]} 9. Rxa8 {[%emt 0:00:06]} Bxa8 {[%emt 0:00:04] White has an edge.} 10. Na3 {[%emt 0:06:08]} b4 {[%emt 0:00:55]} 11. Nc4 {[%emt 0:00:54]} O-O {[%emt 0:01:43]} 12. Bd2 {[%emt 0:03:52]} d5 {[%emt 0:01:47]} 13. exd5 {[%emt 0:00:28] [#]} Nxd5 $146 {[%emt 0:00:06]} ({Predecessor:} 13... Bxd5 14. Nfe5 Bc5 15. Re1 Qc8 16. Bg5 Nbd7 17. d4 Ba7 18. Nxd7 Nxd7 19. Bxd5 exd5 {½-½ (32) Roeder,M (2372)-Abasov,N (2652) Struga 2021}) 14. Qa1 {[%emt 0:05:39]} Nd7 {[%emt 0:00:19]} 15. Qa5 {[%emt 0:05:20]} b3 {[%emt 0:05:36]} 16. c3 {[%emt 0:05:06]} ({Don't play} 16. cxb3 Nc5 $15) 16... N5b6 {[%emt 0:02:01]} 17. Be3 {[%emt 0:13:20]} (17. Nxb6 $14 {is superior.} Nxb6 18. Qb5) 17... Nxc4 $11 {[%emt 0:17:24]} 18. dxc4 {[%emt 0:00:09]} Nb6 {[%emt 0:06:28]} 19. Qb5 {[%emt 0:19:01]} Qe8 {[%emt 0:05:10]} (19... Bxf3 $11 {keeps the balance.} 20. Bxf3 Qd3) 20. Bxb6 {[%emt 0:02:25] White is more active.} Qxb5 {[%emt 0:01:12]} 21. cxb5 {[%emt 0:00:09]} cxb6 {[%emt 0:00:34]} 22. Nd4 {[%emt 0:00:20]} Bxg2 {[%emt 0:00:06]} 23. Kxg2 $16 {[%emt 0:00:06][%mdl 4096] Endgame KRB-KRN} Ra8 {[%emt 0:00:14] Inhibits Ra1.} 24. Nxb3 {[%emt 0:00:55]} Ra2 {[%emt 0:00:04]} 25. Rb1 {[%emt 0:01:17]} h5 {[%emt 0:02:35]} 26. Kf3 {[%emt 0:04:05]} g5 {[%emt 0:00:26]} 27. Ke4 {[%emt 0:02:16]} Bd6 {[%emt 0:04:45]} 28. Nc1 {[%emt 0:04:45]} Ra5 {[%emt 0:01:58]} 29. c4 $1 {[%emt 0:00:24]} f5+ {[%emt 0:00:51]} 30. Kd3 {[%emt 0:00:23]} e5 {[%emt 0:01:38]} 31. Nb3 {[%emt 0:07:51]} Ra4 {[%emt 0:01:34]} 32. f3 {[%emt 0:05:31]} (32. Ra1 $1 $16 {[%cal Ra1a4]} Rxa1 33. Nxa1) 32... Kf7 $14 {[%emt 0:05:26]} 33. Ra1 {[%emt 0:01:31]} Rxa1 {[%emt 0:00:03]} 34. Nxa1 $11 {[%emt 0:00:03] KB-KN} g4 {[%emt 0:00:45]} 35. Ke2 {[%emt 0:00:33]} Bc5 {[%emt 0:00:57]} 36. Nc2 {[%emt 0:00:34]} f4 {[%emt 0:03:04]} 37. gxf4 {[%emt 0:01:11]} exf4 {[%emt 0:00:01]} 38. Ne1 {[%emt 0:00:36] Strongly threatening Nd3.} Bg1 $2 {[%emt 0:01:28]} ({Black should play} 38... Kf6 $14) 39. Nd3 $1 $18 {[%emt 0:00:37] fxg4 is the strong threat.} g3 {[%emt 0:02:47]} (39... gxf3+ 40. Kxf3 Bxh2 41. Nxf4 h4) 40. hxg3 {[%emt 0:00:43]} fxg3 {[%emt 0:00:06] And now ...g2 would win.} 41. Kf1 {[%emt 0:00:23]} Be3 {[%emt 0:00:29]} 42. Kg2 {[%emt 0:00:46]} h4 {[%emt 0:00:07]} 43. b4 $2 {[%emt 0:01:07]} (43. c5 $1 $18) 43... Bg5 $11 {[%emt 0:03:30]} 44. c5 {[%emt 0:00:15]} Bd8 $2 {[%emt 0:00:03][%mdl 8192] [#]} (44... Ke6 $11) 45. Nf4 $1 $18 {[%emt 0:00:27]} bxc5 {[%emt 0:04:20]} 46. bxc5 {[%emt 0:00:03]} Ke7 {[%emt 0:00:04]} 47. Kh3 {[%emt 0:01:26] Nd5+ would kill now.} Kd7 {[%emt 0:00:04]} 48. Nd3 {[%emt 0:00:25]} Be7 {[%emt 0:00:09]} 49. f4 {[%emt 0:00:22] White mates.} Kc7 {[%emt 0:00:17]} 50. Nb4 {[%emt 0:00:32]} Bxc5 {[%emt 0:00:54] [#]} 51. Na6+ $1 {[%emt 0:00:09]} Kb6 {[%emt 0:00:03]} 52. Nxc5 {[%emt 0:00:07]} Kxb5 {[%emt 0:00:04]} 53. Ne4 {[%emt 0:00:33]} Kc4 {[%emt 0:00:27] [#]} 54. Nxg3 $1 {[%emt 0:00:18]} Kd5 {[%emt 0:00:44] Weighted Error Value: White=0.27 (precise) /Black=0.56} (54... hxg3 55. Kxg3) 1-0

[Event "Saint Louis Norm Congress-IM 2022"]
[Site "Saint Louis"]
[Date "2022.05.20"]
[Round "2.2"]
[White "Rodriguez Rivera, Pedro"]
[Black "Grabinsky, Aaron"]
[Result "0-1"]
[ECO "A47"]
[WhiteElo "2197"]
[BlackElo "2401"]
[Annotator "TA"]
[PlyCount "101"]
[EventDate "2022.05.20"]
[EventType "tourn"]
[EventCountry "USA"]
[SourceTitle "playchess.com"]
[Source "ChessBase"]
[SourceQuality "1"]
[TimeControl "5400+30"]

{[%evp 12,101,8,0,17,8,19,12,29,-8,0,-2,0,0,16,0,12,10,18,8,8,0,2,-7,6,-20,-9,-24,-23,-25,-18,-58,-51,-65,-34,-30,-24,-37,-27,-33,-18,-19,-19,-20,-8,-9,-6,-30,-3,-23,-22,-22,-24,-45,-36,-45,-36,-62,0,0,0,0,88,0,0,0,35,-44,-21,-199,-226,-272,-267,-356,-355,-307,-339,-545,-401,-522,-401,-847,-825,-2121,-2071,-29994,-29995,-29995,2033,-874,-854,-1925]} 1. d4 {[%emt 0:00:04]} e6 {[%emt 0:00:06]} 2. Nf3 {[%emt 0:00:07]} Nf6 {[%emt 0:00:09]} 3. e3 {[%emt 0:00:03]} c5 {[%emt 0:00:17]} 4. Bd3 {[%emt 0:00:12]} b6 {[%emt 0:00:49]} 5. Nbd2 {[%emt 0:00:09]} Bb7 {[%emt 0:00:19]} 6. O-O {[%emt 0:02:43]} Be7 {[%emt 0:00:35]} 7. Qe2 {[%emt 0:03:43]} cxd4 {[%emt 0:01:08] A47: 1 d4 Nf6 2 Nf3 b6: Torre, London and Colle Systems.} 8. Nxd4 {[%emt 0:02:30] [#]} a6 $146 {[%emt 0:02:07]} ({Predecessor:} 8... O-O 9. e4 d6 10. c3 Nbd7 11. Bc2 Re8 12. Re1 Bf8 13. Nf1 a6 14. f3 h6 15. Be3 {0-1 (41) Altmann,C (1985)-Luft,M (2130) Bayern 2000}) 9. e4 {[%emt 0:04:02]} d6 {[%emt 0:00:10] The position is equal.} 10. c4 {[%emt 0:05:42]} Qc7 {[%emt 0:01:40]} 11. b3 {[%emt 0:00:27]} Nbd7 {[%emt 0:00:56]} 12. Bb2 {[%emt 0:00:23]} O-O {[%emt 0:04:05]} 13. Rac1 {[%emt 0:01:28]} Rfe8 {[%emt 0:00:36]} 14. Rfd1 {[%emt 0:00:57]} Rac8 {[%emt 0:00:42]} 15. Bb1 {[%emt 0:03:58]} Bf8 {[%emt 0:05:52]} 16. N4f3 {[%emt 0:10:31]} e5 {[%emt 0:04:13]} 17. Nf1 {[%emt 0:04:28]} Qb8 {[%emt 0:01:00]} 18. Ng3 {[%emt 0:01:04]} g6 {[%emt 0:03:17]} 19. Re1 {[%emt 0:01:27]} Bc6 {[%emt 0:01:21]} 20. Nd2 {[%emt 0:05:29]} b5 {[%emt 0:00:56]} 21. cxb5 {[%emt 0:00:42]} axb5 {[%emt 0:00:56]} 22. Ndf1 {[%emt 0:11:35]} Qb7 {[%emt 0:02:36]} 23. Ne3 {[%emt 0:04:31]} h5 {[%emt 0:03:01]} 24. h4 {[%emt 0:02:13]} Nc5 {[%emt 0:00:58][%cal Rc5e4]} 25. f3 {[%emt 0:00:38]} Rcd8 {[%emt 0:05:34]} 26. Qf2 {[%emt 0:01:29]} Qb6 {[%emt 0:08:10]} 27. Rcd1 {[%emt 0:01:27]} Bh6 {[%emt 0:02:33]} 28. Nc2 {[%emt 0:05:45]} b4 {[%emt 0:06:31]} 29. Ne3 {[%emt 0:01:05]} Bb5 {[%emt 0:02:52]} 30. Nd5 {[%emt 0:01:51]} Nxd5 {[%emt 0:00:04]} 31. Rxd5 {[%emt 0:00:09]} Qa6 {[%emt 0:01:58]} 32. Bc1 {[%emt 0:02:35]} Bxc1 {[%emt 0:01:41]} 33. Rxc1 {[%emt 0:00:01]} Ne6 {[%emt 0:01:09]} 34. Rcd1 {[%emt 0:01:10]} Nd4 {[%emt 0:04:53]} (34... Nf4 $1 $15 35. R5d2 Re7) 35. R1xd4 $11 {[%emt 0:00:59]} exd4 {[%emt 0:00:05]} 36. Qxd4 {[%emt 0:00:13][%cal Og3h5] Strongly threatening Nxh5!} Re6 {[%emt 0:07:58]} (36... Rb8 $11 {remains equal.}) 37. Qxb4 {[%emt 0:00:45]} (37. Kh2 $1 $16) 37... Bc6 {[%emt 0:02:05]} 38. Ra5 {[%emt 0:02:12]} Qc8 {[%emt 0:00:09]} 39. Qd4 {[%emt 0:03:35] Inhibits d5.} ({White should play} 39. Rg5 $14) 39... Re5 $36 {[%emt 0:01:14][%mdl 2048] Black is more active.} (39... d5 $5 40. e5 Qc7 $15) 40. Qd2 {[%emt 0:04:25] [#]} ({Wrong is} 40. Rxe5 $2 dxe5 41. Qxe5 Rd1+ 42. Kh2 Qd8 $19) (40. Ra7 $1 $11) 40... Qc7 $1 $19 {[%emt 0:01:22]} 41. Rxe5 {[%emt 0:01:32]} dxe5 {[%emt 0:01:42]} 42. Qc1 {[%emt 0:03:33]} Qa7+ {[%emt 0:01:09]} 43. Kh2 {[%emt 0:00:33]} Qe7 {[%emt 0:00:54]} 44. Ne2 $2 {[%emt 0:01:49]} (44. Nf1 Qxh4+ 45. Kg1) 44... Qxh4+ {[%emt 0:01:46]} 45. Kg1 {[%emt 0:00:04]} Qe7 {[%emt 0:01:53]} 46. Kf2 {[%emt 0:00:53]} (46. a4 $142) 46... Bb5 {[%emt 0:01:25]} 47. Nc3 {[%emt 0:00:01]} Qc5+ {[%emt 0:00:18]} 48. Qe3 {[%emt 0:00:02]} Rd2+ {[%emt 0:00:33]} 49. Kg3 {[%emt 0:00:03]} Rd8 $4 {[%mdl 8192]} 50. Qc1 $4 {[%emt 0:00:02][%mdl 8192]} (50. Qxc5 $18 Bd7 51. Qe7) 50... Rc8 {[%emt 0:00:03] White must now prevent ...h4+.} 51. Ne2 {[%emt 0:00:02] Weighted Error Value: White=0.75/Black=0.12 (very precise)} 0-1

[Event "Saint Louis Norm Congress-IM 2022"]
[Site "Saint Louis"]
[Date "2022.05.20"]
[Round "2.3"]
[White "Ezra Paul Chambers"]
[Black "Marek, Matyas"]
[Result "1/2-1/2"]
[ECO "B43"]
[WhiteElo "2232"]
[BlackElo "2363"]
[Annotator "TA"]
[PlyCount "68"]
[EventDate "2022.05.20"]
[EventType "tourn"]
[EventCountry "USA"]
[SourceTitle "playchess.com"]
[Source "ChessBase"]
[SourceQuality "1"]
[TimeControl "5400+30"]

{[%evp 13,68,0,0,0,0,0,0,6,0,0,0,0,12,-19,5,0,0,0,0,0,0,0,0,0,0,0,0,9,22,17,16,0,39,34,32,39,39,0,0,0,0,0,0,0,0,0,0,0,0,0,0,0,4,0,0,0,0]} 1. e4 {[%emt 0:00:03]} c5 {[%emt 0:00:03]} 2. Nf3 {[%emt 0:00:10]} e6 {[%emt 0:00:06]} 3. Nc3 {[%emt 0:00:32][%cal Bb1c3,Bc3a4,Ba4b6][%mdl 32]} a6 {[%emt 0:00:04]} 4. g3 {[%emt 0:00:16]} b5 {[%emt 0:00:06]} 5. Bg2 {[%emt 0:00:19]} Bb7 {[%emt 0:00:05]} 6. d4 {[%emt 0:00:28]} cxd4 {[%emt 0:12:18]} 7. Nxd4 {[%emt 0:00:22]} b4 {[%emt 0:00:10]} 8. Na4 {[%emt 0:01:16] B43: Sicilian: Kan Variation: 5 Nc3.} Nf6 {[%emt 0:00:09]} 9. Qe2 {[%emt 0:03:41]} Qa5 {[%emt 0:02:36]} 10. b3 {[%emt 0:01:50]} Nc6 {[%emt 0:00:20]} 11. Bb2 {[%emt 0:02:05]} Nxd4 {[%emt 0:17:38]} 12. Bxd4 {[%emt 0:00:07]} Qb5 {[%emt 0:00:21] is the legacy move (12...e5).} 13. Nb6 {[%emt 0:11:09]} Rb8 {[%emt 0:03:25]} 14. Nc4 {[%emt 0:15:36] [#]} Bxe4 $146 {[%emt 0:20:31]} ({Predecessor:} 14... d5 15. exd5 Bxd5 16. Bxd5 Nxd5 17. O-O Nf6 18. Rad1 h5 19. Be5 Rc8 20. Rd6 Nd7 {1-0 (32) Pfretzschner,R (2300)-Naiditsch,A (2175) Bad Zwesten 1998}) 15. Bxe4 {[%emt 0:22:39]} Nxe4 {[%emt 0:00:37][%mdl 64] [#] Remove Defender} 16. Qxe4 {[%emt 0:01:06][%cal Od4g7] Bxg7! is the strong threat.} d5 {[%emt 0:00:06]} 17. Qf4 {[%emt 0:00:16][%cal Od4g7] And now Bxg7! would win.} dxc4 {[%emt 0:00:13]} 18. bxc4 {[%emt 0:02:12]} Qb7 {[%emt 0:00:09]} 19. O-O {[%emt 0:00:12]} Rc8 {[%emt 0:00:18] Inhibits c5.} 20. c5 {[%emt 0:03:00] Black should prevent a3.} Qc7 {[%emt 0:05:50]} 21. Qxc7 {[%emt 0:14:06]} Rxc7 {[%emt 0:00:19]} 22. a3 {[%emt 0:01:10]} Bxc5 {[%emt 0:04:20]} 23. Bxg7 {[%emt 0:01:58]} Rg8 {[%emt 0:00:07]} 24. Be5 {[%emt 0:00:13]} Rc6 {[%emt 0:04:51]} 25. Rfb1 {[%emt 0:01:26]} Rg4 {[%emt 0:01:29] The position is equal.} 26. axb4 {[%emt 0:02:22]} Rxb4 {[%emt 0:00:08]} 27. Rxb4 {[%emt 0:00:19]} Bxb4 $11 {[%emt 0:00:01][%mdl 4096] Endgame KRB-KRB} 28. c3 {[%emt 0:00:38]} Be7 {[%emt 0:04:48]} 29. Kf1 {[%emt 0:01:04]} f6 {[%emt 0:00:09]} 30. Bd4 {[%emt 0:00:06]} e5 {[%emt 0:00:06]} 31. Be3 {[%emt 0:00:06]} Rxc3 {[%emt 0:00:06]} 32. Rxa6 {[%emt 0:00:59]} Rc7 {[%emt 0:01:10]} 33. Ke2 {[%emt 0:00:49]} Kf7 {[%emt 0:00:06]} 34. g4 {[%emt 0:00:47]} Bc5 {[%emt 0:00:51] Weighted Error Value: White=0.05 (flawless) /Black=0.05 (flawless)} 1/2-1/2

[Event "Saint Louis Norm Congress-IM 2022"]
[Site "Saint Louis"]
[Date "2022.05.20"]
[Round "2.4"]
[White "Antova, Gabriela"]
[Black "Yu, Jennifer"]
[Result "0-1"]
[ECO "E14"]
[WhiteElo "2293"]
[BlackElo "2257"]
[Annotator "TA"]
[PlyCount "74"]
[EventDate "2022.05.20"]
[EventType "tourn"]
[EventCountry "USA"]
[SourceTitle "playchess.com"]
[Source "ChessBase"]
[SourceQuality "1"]
[TimeControl "5400+30"]

{[%evp 17,74,0,0,0,0,8,20,-8,0,0,0,0,0,-7,16,0,36,0,0,-46,-3,-16,0,0,0,-4,0,-18,0,-6,0,0,0,0,0,-23,-27,-53,0,-170,-196,-141,0,0,0,0,0,0,0,0,0,-664,-660,-2399,-2412,-29975,-29978,-29947,-5325]} 1. Nf3 {[%emt 0:00:08]} d5 {[%emt 0:10:47]} 2. e3 {[%emt 0:00:18]} Nf6 {[%emt 0:01:12]} 3. c4 {[%emt 0:00:13]} e6 {[%emt 0:01:24]} 4. b3 {[%emt 0:08:52]} b6 {[%emt 0:05:12]} 5. Bb2 {[%emt 0:01:20]} Bb7 {[%emt 0:00:08]} 6. Nc3 {[%emt 0:04:58]} Nbd7 {[%emt 0:03:03]} 7. d4 {[%emt 0:02:39]} Bd6 {[%emt 0:10:14]} 8. Bd3 {[%emt 0:01:29]} O-O {[%emt 0:00:51]} 9. O-O {[%emt 0:00:22]} a6 {[%emt 0:02:01]} 10. a4 {[%emt 0:11:18] E14: Queen's Indian: Classical Variation (4 e3).} c5 {[%emt 0:07:26]} 11. cxd5 {[%emt 0:01:54]} exd5 {[%emt 0:00:45]} 12. Qe2 {[%emt 0:03:35] The position is equal.} Re8 {[%emt 0:05:33]} 13. Rfd1 {[%emt 0:03:17] [#]} Nf8 $146 {[%emt 0:01:36]} ({Predecessor:} 13... Qe7 14. Rac1 Ne4 15. Bb1 Rad8 16. h3 Ndf6 17. a5 bxa5 18. Na4 cxd4 19. Bxd4 Ba3 {1-0 (43) Anton Guijarro,D (2650)-Zhigalko,S (2671) Tallinn 2016}) 14. Qf1 {[%emt 0:12:45]} Ne6 {[%emt 0:04:00]} 15. Ne2 {[%emt 0:02:31]} Ne4 {[%emt 0:14:05]} 16. Rac1 {[%emt 0:14:14]} N6g5 {[%emt 0:08:34]} 17. Bxe4 {[%emt 0:14:43]} (17. Nxg5 {is interesting.} Nxg5 18. Nf4 cxd4 19. Bxd4 Bxf4 20. exf4 Ne6 21. Be3) 17... Nxe4 {[%emt 0:01:18]} 18. Nc3 {[%emt 0:01:33]} (18. Ng3 $11) 18... Nxc3 {[%emt 0:05:12]} (18... Ng5 {looks sharper.} 19. Nxg5 Qxg5 20. a5 cxd4 21. Rxd4 bxa5 22. Na4 Rac8) 19. Rxc3 {[%emt 0:01:11]} c4 {[%emt 0:06:38]} 20. bxc4 {[%emt 0:03:57]} dxc4 {[%emt 0:00:04]} 21. Rxc4 {[%emt 0:03:19]} b5 {[%emt 0:05:11]} 22. axb5 {[%emt 0:01:22]} axb5 {[%emt 0:00:03]} 23. Rc2 {[%emt 0:01:32]} Bxf3 {[%emt 0:00:50]} 24. gxf3 {[%emt 0:00:02]} Qh4 {[%emt 0:03:26][%csl Gd6][%cal Rh4h2]} 25. h3 {[%emt 0:00:33]} Re6 {[%emt 0:02:08]} 26. f4 {[%emt 0:01:28]} Rg6+ {[%emt 0:00:57][%mdl 1024] Black has compensation.} 27. Kh1 $1 {[%emt 0:02:14]} ({Wrong is} 27. Kh2 $2 Bxf4+ $1 {[%mdl 512]} 28. Kh1 (28. exf4 $2 Qxf4+ 29. Kh1 Qe4+ 30. Kh2 Qxc2 $19) 28... Qh5 $1 $19) 27... Qh5 $40 {[%emt 0:00:19][%mdl 128] Black has some attack.} (27... h6 $1 $15) 28. Rdc1 $2 {[%emt 0:00:32]} (28. Kh2 $11 {and White stays safe.}) 28... Qf3+ $19 {[%emt 0:00:27]} 29. Kh2 {[%emt 0:00:01]} Rf8 {[%emt 0:00:36] 0x0.000842168c5ddp-1022s more active pieces.} (29... h5 $17 {White must now prevent ...b4.} 30. d5 b4) 30. Rc8 $11 {[%emt 0:01:12]} b4 {[%emt 0:00:43]} 31. Rxf8+ {[%emt 0:00:42]} Kxf8 {[%emt 0:00:05]} 32. Rc8+ {[%emt 0:01:10]} Ke7 {[%emt 0:00:04]} 33. Bc1 {[%emt 0:00:19]} Rg3 {[%emt 0:01:27] Hoping for ...g5. Really sharp!} 34. Rc2 $2 {[%emt 0:00:54][%mdl 8192] [#]} (34. Bb2 $11) 34... g5 $1 $19 {[%emt 0:00:26] ...g4 is the strong threat.} 35. e4 {[%emt 0:00:51]} g4 {[%emt 0:00:29]} 36. hxg4 {[%emt 0:00:08]} Rxg4 {[%emt 0:00:02]} 37. Qh3 {[%emt 0:00:53]} Bxf4+ {[%emt 0:00:03] Weighted Error Value: White=0.90/Black=0.13 (very precise)} 0-1